Cogmind - Beta 12 @@@ ROGUE MODE // 2024.01.27 @ 05:29:11 Player: Ev Result: Destroyed by H-55 Commando with Gauss Rifle Performance ------------- Evolutions (3) 1500 Regions Visited (4) 800 Robots Destroyed (62) 310 Value Destroyed (2136) 2136 Prototype IDs (11) 220 Alien Tech Used (0) 0 Bonus (0) 0 TOTAL SCORE: 4966 Bonus ------- None Cogmind --------- Core Integrity 0/700 Matter 88/300 Energy 65/100 System Corruption 12% Temperature Warm (112) Movement Core (200) Ox3 Location -7/Factory Parts ------- > --- POWER (1) -------- (None) > --- PROPULSION (4) --- (None) > --- UTILITY (5) ------ Medium Storage Unit Hacking Suite > --- WEAPON (3) ------- (None) > --- INVENTORY (10) --- Cooled Deuterium Engine VTOL Module Improved Heat Sink Advanced Visual Processing Unit Recoil Stabilizer Advanced ECM Suite Relay Coupler [Demolisher] (18) Improved Spread Laser Peak State ------------ > --- POWER ------------ Cooled Deuterium Engine > --- PROPULSION ------- Aluminum Leg Improved Aluminum Leg Improved Aluminum Leg Improved Aluminum Leg > --- UTILITY ---------- Improved Heat Sink Medium Storage Unit Improved Power Shielding Hardened Light Armor Plating Hacking Suite > --- WEAPON ----------- Improved Spread Laser Hardcell Cannon Hardcell Cannon > --- INVENTORY -------- Cooled Deuterium Engine Aluminum Leg Improved Heat Sink Advanced Visual Processing Unit Recoil Stabilizer Advanced ECM Suite Light Armor Plating Arc Projector Advanced Beam Rifle Gauss Cannon [Rating: 46] Favorites ----------- Power Light Nuclear Core Engine Cooled Deuterium Engine Power Core Light Nuclear Core Propulsion Improved Aluminum Leg Treads Advanced Treads Leg Improved Aluminum Leg Flight Unit Flight Unit Utility Medium Storage Unit Device Improved Heat Sink Storage Medium Storage Unit Processor Improved Targeting Computer Hackware Hacking Suite Protection Light Armor Plating Weapon Hardcell Cannon Energy Gun Field Laser Ballistic Gun Gauss Rifle Ballistic Cannon Hardcell Cannon Build | -11 -10 -9 -8 -7 ------- Run | Jun Mat Mat Mat Fac Slots Evolved 6 | . . 2 2 2 Power . | . . . . . Propulsion 2 | . . 2 . . Utility 3 | . . . 2 1 Weapon 1 | . . . . 1 Parts Attached 73 | 7 2 9 34 21 Power 12 | 2 1 1 6 2 Engine 10 | 2 1 1 4 2 Core 2 | . . . 2 . Reactor . | . . . . . Propulsion 21 | 2 . 6 9 4 Treads 2 | . . . 2 . Leg 9 | 2 . . 4 3 Wheel . | . . . . . Hover . | . . . . . Flight 10 | . . 6 3 1 Utility 17 | 1 . . 11 5 Device 7 | . . . 7 . Storage 2 | 1 . . 1 . Processor 1 | . . . 1 . Hackware 1 | . . . . 1 Protection 6 | . . . 2 4 Artifact . | . . . . . Weapon 23 | 2 1 2 8 10 Energy Gun 14 | 2 1 . 6 5 Energy Cannon . | . . . . . Ballistic Gun 2 | . . . 1 1 Ballistic Cannon 7 | . . 2 1 4 Launcher . | . . . . . Special Weapon . | . . . . . Impact Weapon . | . . . . . Slashing Weapon . | . . . . . Piercing Weapon . | . . . . . Special Melee Weapon . | . . . . . Unidentified Prototypes 6 | . . . 3 3 Parts Lost 29 | . . 1 11 17 Power 3 | . . . 2 1 Propulsion 11 | . . 1 3 7 Utility 8 | . . . 4 4 Weapon 7 | . . . 2 5 Highest Loss Streak 9 | . . 1 5 9 To Critical Strikes 1 | . . . . 1 Average Slot Usage (%) 91 | . 83 86 93 91 Engine 5 | . 13 11 2 6 Core 3 | . . . 6 . Treads 1 | . . . 2 . Leg 20 | . 28 . 19 24 Flight 8 | . . 42 9 . Device 10 | . . . 16 7 Storage 9 | . 14 11 9 7 Processor 1 | . . . 2 . Hackware 2 | . . . . 6 Protection 7 | . . . 5 14 Energy Gun 12 | . 26 1 12 8 Ballistic Gun 2 | . . . 4 . Ballistic Cannon 5 | . . 20 . 11 Naked Turns . | . . . . . Heaviest Build 53 | 13 13 16 26 53 Greatest Support 58 | 20 20 16 58 58 Greatest Overweight (x) 6 | 3 . . 2 6 Average Overweight (x) . | 1 . . . . Largest Inventory Capacity 10 | 8 8 8 10 10 Average Capacity 9 | 7 8 8 9 10 Most Carried 10 | 3 8 8 10 10 Average Carried 7 | 1 5 6 6 9 Final Capacity 10 | 8 8 8 10 10 Final Carried 10 | 1 8 8 10 8 Class Distribution -------------------- 40% | Scavenger-Mutant 24% | Mutant 23% | Tank 5% | Scavenger-Sprinter 5% | Sprinter Dominant Class ---------------- Mutant | -10/Materials Sprinter | -9/Materials Scavenger-Mutant | -8/Materials Tank | -7/Factory Resources | -11 -10 -9 -8 -7 ----------- Run | Jun Mat Mat Mat Fac Matter Collected 1562 | 212 58 306 428 558 Remotely . | . . . . . Salvage Created 2384 | . 154 249 1194 787 Parts 112 | . 13 17 48 34 Haulers Intercepted 7 | . . 2 3 2 Recyclers Shooed 2 | . . . 1 1 Parts Field Recycled . | . . . . . Retrieved Matter . | . . . . . Parts Self-Destructed . | . . . . . Prevented . | . . . . . Kills | -11 -10 -9 -8 -7 ------- Run | Jun Mat Mat Mat Fac Combat Hostiles Destroyed 46 | . 5 6 20 15 Guns 25 | . 5 . 18 2 Cannons 17 | . . 6 . 11 AOE 2 | . . . . 2 Classes Destroyed 10 | . 3 2 3 2 Builder 3 | . . . 1 2 Hauler 7 | . . 2 3 2 Recycler 3 | . . . . 3 Watcher 3 | . 1 1 . 1 Swarmer 9 | . 3 1 . 5 Grunt 28 | . 2 4 15 7 Brawler 1 | . . . 1 . Sentry 5 | . . 1 3 1 Hunter 1 | . . . 1 . Programmer 2 | . . . . 2 Best Kill Streak 7 | . 3 3 7 3 Combat Bots Only 7 | . 3 2 7 3 Max Kills in Single Turn 3 | . 1 1 1 3 Gunslinging . | . . . . . Exploded 1 | . . . . 1 Melee . | . . . . . Uniques/NPCs Destroyed . | . . . . . Combat | -11 -10 -9 -8 -7 -------- Run | Jun Mat Mat Mat Fac Damage Taken 4658 | . 173 220 1410 2855 Core 955 | . 25 42 178 710 Absorbed by Shields . | . . . . . Redirected to Shielding 107 | . . . . 107 Regen/Repaired (Parts) 67 | . 67 . . . Core Remaining (%) 86 | 100 90 89 67 . Volleys Fired 192 | . 17 33 80 62 Largest 3 | . 2 2 2 3 Hottest 185 | . 80 78 118 185 Shots Fired 391 | . 34 66 146 145 Gun 225 | . 34 . 140 51 Cannon 166 | . . 66 6 94 Launcher . | . . . . . Special . | . . . . . Kinetic 177 | . . 66 17 94 Thermal 162 | . 17 . 129 16 Explosive . | . . . . . Electromagnetic 52 | . 17 . . 35 Robot Hit Streak 17 | . 5 8 17 13 Robot Miss Streak 7 | . 3 7 3 3 Penetration Max 1 | . . . 1 . Secondary Targets 1 | . . . 1 . Max Gunslinging Chain 1 | . . . 1 . Shots Hit Robots 248 | . 19 29 112 88 Core Hits 98 | . 9 10 42 37 Critical Kills . | . . . . . Critical Parts Destroyed . | . . . . . Critical Strikes 14 | . . 1 7 6 Burn 8 | . . . 7 1 Blast 6 | . . 1 . 5 Melee Attacks . | . . . . . Impact . | . . . . . Slashing . | . . . . . Piercing . | . . . . . Sneak Attacks . | . . . . . Combat Hostiles . | . . . . . Follow-up Attacks . | . . . . . Damage Inflicted 5999 | . 241 609 2178 2971 Guns 2829 | . 241 . 2115 473 Cannons 2992 | . . 609 59 2324 Explosions 174 | . . . . 174 Melee . | . . . . . Ramming 4 | . . . 4 . Kinetic 3202 | . . 609 269 2324 Thermal 2412 | . 114 . 1905 393 Explosive . | . . . . . Electromagnetic 381 | . 127 . . 254 Impact . | . . . . . Slashing . | . . . . . Piercing . | . . . . . Highest Corruption 12 | . . . 1 12 Average Corruption 1 | . . . 1 2 Corruption Purged . | . . . . . Corruption Blocked . | . . . . . Effects 9 | . . . 5 4 Message Errors 1 | . . . 1 . Matter Fused 2 | . . . 2 . Heat Flow Errors 1 | . . . . 1 Energy Discharges 1 | . . . 1 . Data Loss (minor) 2 | . . . 1 1 Data Loss (major) 1 | . . . . 1 Weapon Failures 1 | . . . . 1 Overload Shots . | . . . . . Overflow Damage 98 | . . 6 . 92 Projectiles 98 | . . 6 . 92 Explosions . | . . . . . Melee . | . . . . . Knockbacks 17 | . . 7 . 10 Impact . | . . . . . Kinetic 16 | . . 6 . 10 Secondary 1 | . . 1 . . Self-Inflicted Damage . | . . . . . Shots . | . . . . . Rammed . | . . . . . Targets Rammed 1 | . . . 1 . Kicked 1 | . . . 1 . Crushed . | . . . . . Highest Temperature 476 | . 153 278 476 383 Average Temperature 115 | . 62 113 142 103 Received Heat Transfer 1212 | . 75 93 693 351 Effects 5 | . . . 5 . Shutdowns 1 | . . . 1 . Interference 3 | . . . 3 . Damage (minor) 1 | . . . 1 . Siege Activations . | . . . . . Robots Corrupted . | . . . . . Combat Hostiles . | . . . . . Parts Fried 1 | . . . . 1 Impact Corruptions . | . . . . . Robots Melted 2 | . . . 2 . Combat Hostiles 2 | . . . 2 . Parts Melted 11 | . . . 10 1 Heat Transferred 5153 | . 250 . 4292 611 Parts Sabotaged . | . . . . . Parts Stolen . | . . . . . Parts Stripped . | . . . . . Power Chain Reactions 1 | . . . . 1 Missiles Intercepted . | . . . . . Alert | -11 -10 -9 -8 -7 ------- Run | Jun Mat Mat Mat Fac Peak Influence 340 | . 203 260 331 340 Initial 109 | . . . 109 67 Average 153 | . 114 113 159 178 Maximum Alert Level 1 | . 1 1 1 1 Low Security (%) 72 | 100 98 76 77 48 Level 1 27 | . 1 23 22 51 Level 2 . | . . . . . Level 3 . | . . . . . Level 4 . | . . . . . Level 5 . | . . . . . High Security . | . . . . . Max Security . | . . . . . Squads Dispatched 9 | . . 2 3 4 Investigation 3 | . . 1 1 1 Extermination 1 | . . . . 1 Reinforcement 5 | . . 1 2 2 Assault . | . . . . . Garrison . | . . . . . Intercept . | . . . . . Searches Triggered . | . . . . . Construction Impeded 1 | . . . 1 . Haulers Reinforced 1 | . . . . 1 Active Scanning Responses . | . . . . . Cargo Convoy Interrupts 1 | . . . . 1 Stealth | -11 -10 -9 -8 -7 --------- Run | Jun Mat Mat Mat Fac Distress Signals 4 | . . 1 2 1 Communications Jammed . | . . . . . Distress Signals . | . . . . . Times Spotted 85 | . 10 17 23 35 Peak Tracking Total 11 | . 3 6 5 11 Tactical Retreats 6 | . 1 3 . 2 Traps | -11 -10 -9 -8 -7 ------- Run | Jun Mat Mat Mat Fac Traps Triggered 5 | . . 2 2 1 Indirectly . | . . . . . Trap Hack Attempts . | . . . . . Triggered . | . . . . . Disarmed . | . . . . . Reprogrammed . | . . . . . Reused . | . . . . . Traps Extracted . | . . . . . Installed . | . . . . . Triggered . | . . . . . Machines | -11 -10 -9 -8 -7 ---------- Run | Jun Mat Mat Mat Fac Machines Disabled 11 | . . 2 . 9 Max in Single Turn 8 | . . 1 . 8 Machines Repaired . | . . . . . Machines Sabotaged . | . . . . . Overloaded Fab Kills . | . . . . . Hacking | -11 -10 -9 -8 -7 --------- Run | Jun Mat Mat Mat Fac Machines Accessed 14 | . 7 1 4 2 Terminals 10 | . 5 1 3 1 Fabricators 1 | . . . . 1 Repair Stations 1 | . 1 . . . Recycling Units 2 | . 1 . 1 . Scanalyzers . | . . . . . Garrison Access . | . . . . . Total Hacks 54 | . 30 2 17 5 Successful 30 | . 18 1 10 1 Failed 24 | . 12 1 7 4 Catastrophic . | . . . . . Database Lockouts . | . . . . . Manual 15 | . 5 . 10 . Terminals 41 | . 21 2 16 2 Fabricators 3 | . . . . 3 Repair Stations 7 | . 7 . . . Recycling Units 3 | . 2 . 1 . Scanalyzers . | . . . . . Garrison Access . | . . . . . Terminal Hacks 17 | . 10 1 6 . Robot Analysis 2 | . 1 . 1 . Prototype ID Bank 3 | . 3 . . . Emergency Access Points 3 | . 2 . 1 . Alert Level 2 | . . 1 1 . Locate Traps 4 | . 2 . 2 . Hauler Manifests 1 | . 1 . . . Zone Layout 2 | . 1 . 1 . Fabricator Hacks 1 | . . . . 1 Build 1 | . . . . 1 Repair Station Hacks 6 | . 6 . . . Scan Component 3 | . 3 . . . Repair 3 | . 3 . . . Recycling Unit Hacks 1 | . . . 1 . Retrieve Components 1 | . . . 1 . Scanalyzer . | . . . . . Garrison Access Hacks . | . . . . . Unauthorized Hacks 5 | . 2 . 3 . Terminals 5 | . 2 . 3 . Track 3 | . 1 . 2 . Operators 2 | . 1 . 1 . Fabricators . | . . . . . Repair Stations . | . . . . . Recycling Units . | . . . . . Scanalyzers . | . . . . . Garrison Access . | . . . . . Data Cores Recovered . | . . . . . Used . | . . . . . Hacking Detections 12 | . 6 1 3 2 Full Trace Events 1 | . . . 1 . Feedback Events . | . . . . . Feedback Blocked . | . . . . . Robot Schematics Acquired . | . . . . . Robots Built . | . . . . . Authchips . | . . . . . Time . | . . . . . Total Robot Build Rating . | . . . . . Part Schematics Acquired . | . . . . . Parts Built 2 | . . . . 2 Authchips . | . . . . . Time 58 | . . . . 58 Total Part Build Rating 14 | . . . . 14 Parts Repaired 3 | . 3 . . . Time 88 | . 88 . . . Parts Recycled . | . . . . . Recycled Matter . | . . . . . Retrieved Matter . | . . . . . Retrieved Components . | . . . . . Parts Scanalyzed . | . . . . . Part Schematics Acquired . | . . . . . Parts Damaged . | . . . . . Bothacking | -11 -10 -9 -8 -7 ------------ Run | Jun Mat Mat Mat Fac Used RIF Installer . | . . . . . Robots Hacked . | . . . . . Non-combat . | . . . . . Combat . | . . . . . Robot Hacks Applied . | . . . . . Relay Couplers Released 3 | . . . . 3 Programmers 3 | . . . . 3 Fabnet Peak Effective % . | . . . . . Robots Rewired . | . . . . . Allies Hacked . | . . . . . Hacks Repelled . | . . . . . Allies | -11 -10 -9 -8 -7 -------- Run | Jun Mat Mat Mat Fac Total Allies . | . . . . . Largest Group . | . . . . . Highest-Rated Group . | . . . . . Highest-Rated Ally . | . . . . . Total Orders . | . . . . . Ally Attacks . | . . . . . Total Damage . | . . . . . Kills . | . . . . . Allies Corrupted . | . . . . . Allies Melted . | . . . . . Intel | -11 -10 -9 -8 -7 ------- Run | Jun Mat Mat Mat Fac Robot Analysis Total 2 | . 1 . 1 . Derelict Logs Recovered . | . . . . . Drone Launches . | . . . . . Drone Recoveries . | . . . . . Exploration | -11 -10 -9 -8 -7 ------------- Run | Jun Mat Mat Mat Fac Turns Passed 3200 | 62 413 229 1527 969 Spaces Moved 1320 | 35 206 231 517 331 Core 20 | 16 . . 3 1 Treads 193 | . . . 193 . Legs 794 | 19 206 . 239 330 Wheels . | . . . . . Hover . | . . . . . Flight 313 | . . 231 82 . Fastest Speed 29 | 50 120 29 29 120 Average Speed 118 | 138 120 30 117 178 Slowest Speed 470 | 200 120 32 150 470 Overloaded Moves . | . . . . . Propulsion Burnouts . | . . . . . Robots Hopped . | . . . . . Cave-ins Triggered . | . . . . . Exploration Rate (%) 20 | 3 36 19 37 9 Regions Visited 4 Branch Regions . Pre-discovered Areas . | . . . . . Known Exits Taken . | . . . . . Unknown Exits Taken 4 | 1 1 1 1 . Scrap Searched . | . . . . . Spaces Dug 1 | . . 1 . . Terrain Destroyed 57 | . . 4 1 52 Melee . | . . . . . Projectile 30 | . . 4 1 25 AOE 27 | . . . . 27 Terrain Rammed . | . . . . . Walls Destroyed . | . . . . . Machines Disabled . | . . . . . Actions | -11 -10 -9 -8 -7 --------- Run | Jun Mat Mat Mat Fac Total 2587 | 48 337 324 1289 589 Wait 907 | . 103 37 617 150 Move 1316 | 34 205 230 516 331 Hop . | . . . . . Pick Up 68 | 7 9 9 28 15 Fast Attach 10 | . 2 . 8 . Attach 36 | 6 . 5 16 9 Detach . | . . . . . Swap 27 | 1 . 4 10 12 Drop 30 | . 1 6 13 10 Fire 192 | . 17 33 80 62 Melee . | . . . . . Ram . | . . . . . Kick 1 | . . . 1 . Crush . | . . . . . Escape Stasis . | . . . . . Rewire . | . . . . . Trap . | . . . . . Miscellaneous . | . . . . . Route ------- -11/Junkyard -10/Materials (discovered 2 exits: *Mat / [*Min]) -9/Materials -8/Materials -7/Factory History --------- Turn | Location | Event 5 | -11/Junkyard | Discovered new exit (range 16) 63 | -11/Junkyard | Entered Materials 305 | -10/Materials | Discovered new exit (range 15) 318 | -10/Materials | Build established: Mutant 380 | -10/Materials | Repaired Corrupted Flight Unit 407 | -10/Materials | Repaired Ion Engine 435 | -10/Materials | Repaired EM Pulse Gun 456 | -10/Materials | Discovered new exit (range 9) 476 | -10/Materials | Entered another Materials area 476 | -9/Materials | Evolved 2 slots: Propulsion x2 586 | -9/Materials | Discovered new exit (range 7) 705 | -9/Materials | Entered another Materials area 705 | -8/Materials | Evolved 2 slots: Utility x2 888 | -8/Materials | Lost 5 parts (1p3n1w) 1125 | -8/Materials | Build established: Scavenger-Mutant 1504 | -8/Materials | Destroyed 7 combat bots 1509 | -8/Materials | Lost 3 parts (1p1u1w) 1523 | -8/Materials | Discovered new exit (range 15) 2232 | -8/Materials | Entered Factory 2232 | -7/Factory | Evolved 2 slots: Utility x1, Weapon x1 2544 | -7/Factory | Fabricated Hardcell Cannon (x2) 2574 | -7/Factory | Build established: Tank 3163 | -7/Factory | Cargo convoy interrupted 3189 | -7/Factory | Core integrity fell below 50% 3192 | -7/Factory | System corruption reached 10% 3197 | -7/Factory | Core integrity fell below 20% 3201 | -7/Factory | Destroyed by H-55 Commando with Gauss Rifle Last Messages --------------- 03189_ Acquired 47 matter. 03189_ K-01 Serf collects debris. 03190_ P-60 Hacker resets P-60 Hacker, system corruption cleaned. 03190_ Penetrated by Slug. 03190_ Cld. Deuterium Engine destroyed. 03192_ K-01 Serf collects debris. 03193_ U-05 Engineer builds a Wall. 03193_ Penetrated by Slug. 03193_ U-05 Engineer destroyed. 03193_ Slug penetrates Wall. 03194_ Acquired 29 matter. 03194_ P-60 Hacker resets H-55 Commando, system corruption cleaned. 03196_ K-01 Serf collects debris. 03196_ Penetrated by Slug. 03197_ P-60 Hacker resets P-60 Hacker, system corruption cleaned. 03199_ K-01 Serf collects debris. 03199_ Penetrated by Slug. 03199_ Adv. Beam Rifle destroyed. 03199_ Penetrated by Slug. 03200_ System corrupted: Heat flow error (+116). Map ----- +----------------------------------------------------+ | ?????????????????????????????????????????????????? | | ?????????????????????????????????????????????????? | | ?????????????????????????????????????????????????? | | ?????????????????????????????????????????????????? | | ?????????????????????????????????????????????????? | | ?????????????????????????????????????????????????? | | ?????????????????????????????????????????????????? | | ?????????????????????????????????????????????????? | | ?????????????????????????????????????????????????? | | ?????????????????????????????????????????????????? | | ?????????????????????????????????????????????????? | | ?????????????????????????????????????????????????? | | ?????????????????????????????????????????????????? | | ?????????????????????????????????????????????????? | | ?????????????????????????????????????????????????? | | ?????????????????????????????????????????????????? | | ?????????????? ??????????????????????????????????? | | ???????????? ??????###############????????????? | | ????????? ??????# !!! =?????????????? | | ????????# ??????# ""[!! ??????????????? | | ????????# ??????? " =!! ""??????????????? | | ????????# ??????? " """???????????????? | | ????????# ??????#? % """"??????????????? | | ????????# ??????# *! ???????????????? | | ????????# %#########x[###/####??????????????? | | ????????# % % !==%==!@h% %i ######### ""?? | | ????????# !%%!!%|%kpph h% % ""?? | | ????????# % ===%!%*%%%! % | | ????????# !==%=!!p!*% "" % | | ????????+ [!!=]=]= ""F""u | | ????????# !=!=[ "" "" ^ ## | | ????????# ] ####+####? | | ######??# ########### #????????? | | ### #?????????# #????????? | | ! #?????????# """""" ???????? | | #?????????# """""" ??????? | | #?????????# """""" #?????? | | #?????????# """??? #?????? | | ###???????# ??? #?????? | | # #???????# ??? ??????? | | # #???????? ???? ?????????? | | # #????????###### ???????????????? | | #"############### ??????????????? | | # #????????????????? | | # #????????????????? | | # #????????????????? | | # #????????????????? | | + #????????????????? | | # #????????????????? | | # #????#???????????? | +----------------------------------------------------+ Best States ------------- Heat Dissipation 55 Energy Generation 18 Energy Capacity 310 Matter Stores 300 Matter Capacity 300 Sight Range 16 Terrain Scan Density 10 Additional Mass Support 6 Armor Coverage 225 Power Shielding 66 Evasion (%) 64 Targeting Accuracy 6 Recoil Reduction 1 Offensive Hacking 10 Item Schematics ----------------- None Robot Schematics ------------------ None Fabricated ------------ Hardcell Cannon | x2 | -7/Factory | Preloaded Alien Tech Used ----------------- None Achievements -------------- None Challenges ------------ None Game ------ Seed AccelerationTargetCanceller Manual? 0 Play Time 00:33:19 Cumulative 37.1 hours Start 2024.01.27 @ 04:59:05 End 2024.01.27 @ 05:29:11 Sessions 1 Manual Loads 0 Difficulty Rogue Special Mode None Game No. 79 Rogue 79 Adventurer 0 Explorer 0 Win Type - Total 0 Types 0/0/0/0/0/0/0/0/0 Lore% 24 Gallery% 29 Achievement% 20 Wizard Run 0 Options --------- ASCII 0 Keyboard 0 Movement Mouse Keybinds 0 Fullscreen 1 Font 24/Smallcaps Map View 76x50 Tactical HUD 1 Map Filters NONE Filters NONE Steam 1 RUN: 6c675a6a-0cc9-45ef-b6e7-67330a76567f